fUSD/lending_fUSD_20250519
["ID","MTS","AMOUNT","RATE_DAILY","PERIOD"]
[361574380,1747620651601,-200.0,0.00013808,2]
[361574381,1747620651610,-151.0,0.00013808,2]
[361574382,1747620651620,-1244.547058,0.00013808,2]
[361574383,1747620651630,-151.0,0.00013808,2]
[361574384,1747620651639,-151.0,0.00013808,2]
[361574385,1747620651649,-152.428065,0.00013808,2]
[361574386,1747620651659,-151.380315,0.00013808,2]
[361574387,1747620651669,-400.0,0.00013808,2]
[361574388,1747620651678,-400.0,0.00013808,2]
[361574389,1747620651687,-400.0,0.00013808,2]
[361574390,1747620651697,-400.0,0.00013808,2]
[361574391,1747620651706,-155.38367855,0.00013808,2]
[361574392,1747620651716,-400.0,0.00013808,2]
[361574393,1747620651726,-400.0,0.00013808,2]
[361574394,1747620651735,-412.11929362,0.00013808,2]
[361574395,1747620651745,-400.0,0.00013808,2]
[361574396,1747620651754,-400.0,0.00013808,2]
[361574397,1747620651764,-151.0,0.00013808,2]
[361574398,1747620651773,-152.349682,0.00013808,2]
[361574399,1747620651783,-400.0,0.00013808,2]
[361574400,1747620651792,-151.0,0.00013808,2]
[361574401,1747620651801,-151.0,0.00013808,2]
[361574402,1747620651811,-151.0,0.00013808,2]
[361574403,1747620651820,-151.0,0.00013808,2]
[361574404,1747620651830,-400.0,0.00013808,2]
[361574405,1747620651839,-400.0,0.00013808,2]
[361574406,1747620651848,-400.0,0.00013808,2]
[361574407,1747620651857,-587.38,0.00013808,2]
[361574408,1747620651866,-151.0,0.00013808,2]
[361574409,1747620651876,-400.0,0.00013808,2]
[361574410,1747620651885,-151.0,0.00013808,2]
[361574411,1747620651894,-537.54,0.00013808,2]
[361574412,1747620651903,-251.52,0.00013808,2]
[361574413,1747620651913,-151.0,0.00013808,2]
[361574414,1747620651922,-151.895612,0.00013808,2]
[361574415,1747620651931,-474.58,0.00013808,2]
[361574416,1747620651940,-400.0,0.00013808,2]
[361574417,1747620651949,-400.0,0.00013808,2]
[361574418,1747620651959,-400.0,0.00013808,2]
[361574419,1747620651969,-400.0,0.00013808,2]
[361574420,1747620651978,-621.48,0.00013808,2]
[361574421,1747620651987,-300.941838,0.00013808,2]
[361574422,1747620651997,-151.739659,0.00013808,2]
[361574423,1747620652007,-400.0,0.00013808,2]
[361574424,1747620652016,-300.941838,0.00013808,2]
[361574425,1747620652026,-400.0,0.00013808,2]
[361574426,1747620652036,-489.72,0.00013808,2]
[361574427,1747620652046,-400.0,0.00013808,2]
[361574428,1747620652055,-559.459585,0.00013808,2]
[361574429,1747620652064,-559.459585,0.00013808,2]
[361574430,1747620652074,-400.0,0.00013808,2]
[361574431,1747620652083,-406.7,0.00013808,2]
[361574432,1747620652092,-151.0,0.00013808,2]
[361574433,1747620652101,-152.594986,0.00013808,2]
[361574434,1747620652110,-151.0,0.00013808,2]
[361574435,1747620652120,-400.0,0.00013808,2]
[361574436,1747620652129,-151.0,0.00013808,2]
[361574437,1747620652138,-559.459585,0.00013808,2]
[361574438,1747620652148,-559.459585,0.00013808,2]
[361574439,1747620652157,-400.0,0.00013808,2]
[361574440,1747620652167,-694.04,0.00013808,2]
[361574441,1747620652176,-400.0,0.00013808,2]
[361574442,1747620652186,-400.0,0.00013808,2]
[361574443,1747620652196,-400.0,0.00013808,2]
[361574444,1747620652208,-410.27691542,0.00013808,2]
[361574445,1747620652219,-400.0,0.00013808,2]
[361574446,1747620652228,-314.57518375,0.00013808,2]
[361574447,1747620652238,-505.27,0.00013808,2]
[361574448,1747620652247,-401.82818709,0.00013808,2]
[361574449,1747620652256,-588.82,0.00013808,2]
[361574450,1747620652265,-151.0,0.00013808,2]
[361574451,1747620652275,-151.0,0.00013808,2]
[361574452,1747620652286,-400.0,0.00013808,2]
[361574453,1747620652295,-151.0,0.00013808,2]
[361574454,1747620652305,-400.0,0.00013808,2]
[361574455,1747620652314,-151.0,0.00013808,2]
[361574456,1747620652324,-400.0,0.00013808,2]
[361574457,1747620652333,-400.0,0.00013808,2]
[361574458,1747620652342,-557.98,0.00013808,2]
[361574459,1747620652352,-400.0,0.00013808,2]
[361574460,1747620652361,-728.88,0.00013808,2]
[361574461,1747620652371,-152.65723,0.00013808,2]
[361574462,1747620652381,-400.0,0.00013808,2]
[361574463,1747620652390,-400.0,0.00013808,2]
[361574464,1747620652399,-408.35801182,0.00013808,2]
[361574465,1747620652409,-400.0,0.00013808,2]
[361574466,1747620652418,-400.0,0.00013808,2]
[361574467,1747620652428,-400.0,0.00013808,2]
[361574468,1747620652438,-296.4,0.00013808,2]
[361574469,1747620652448,-400.0,0.00013808,2]
[361574470,1747620652457,-400.0,0.00013808,2]
[361574471,1747620652467,-1076.84,0.00013808,2]
[361574472,1747620652477,-400.0,0.00013808,2]
[361574473,1747620652486,-296.146871,0.00013808,2]
[361574474,1747620652496,-151.0,0.00013808,2]
[361574475,1747620652505,-151.0,0.00013808,2]
[361574476,1747620652514,-151.0,0.00013808,2]
[361574477,1747620652523,-155.360462,0.00013808,2]
[361574478,1747620652533,-153.566223,0.00013808,2]
[361574479,1747620652542,-400.0,0.00013808,2]
[361574480,1747620652552,-1300.99,0.00013808,2]
[361574481,1747620652562,-683.17,0.00013808,2]
[361574482,1747620652571,-291.91,0.00013808,2]
[361574483,1747620652581,-1005.32,0.00013808,2]
[361574484,1747620652590,-434.24,0.00013808,2]
[361574485,1747620652599,-400.0,0.00013808,2]
[361574486,1747620652609,-400.0,0.00013808,2]
[361574487,1747620652619,-151.0,0.00013808,2]
[361574488,1747620652628,-400.0,0.00013808,2]
[361574489,1747620652638,-151.0,0.00013808,2]
[361574490,1747620652648,-151.0,0.00013808,2]
[361574491,1747620652657,-151.0,0.00013808,2]
[361574492,1747620652667,-574.22,0.00013808,2]
[361574493,1747620652676,-400.0,0.00013808,2]
[361574494,1747620652686,-151.0,0.00013808,2]
[361574495,1747620652695,-151.0,0.00013808,2]
[361574496,1747620652705,-151.0,0.00013808,2]
[361574497,1747620652715,-151.0,0.00013808,2]
[361574498,1747620652725,-400.0,0.00013808,2]
[361574499,1747620652735,-400.0,0.00013808,2]
[361574500,1747620652745,-151.0,0.00013808,2]
[361574501,1747620652755,-151.0,0.00013808,2]
[361574502,1747620652765,-151.0,0.00013808,2]
[361574503,1747620652775,-155.203847,0.00013808,2]
[361574504,1747620652785,-400.0,0.00013808,2]
[361574505,1747620652794,-499.71,0.00013808,2]
[361574506,1747620652804,-400.0,0.00013808,2]
[361574507,1747620652814,-881.52,0.00013808,2]
[361574508,1747620652823,-152.04586,0.00013808,2]
[361574509,1747620652833,-400.0,0.00013808,2]
[361574510,1747620652843,-957.79,0.00013808,2]
[361574511,1747620652852,-159.200624,0.00013808,2]
[361574512,1747620652863,-443.72,0.00013808,2]
[361574513,1747620652872,-400.0,0.00013808,2]
[361574514,1747620652882,-400.0,0.00013808,2]
[361574515,1747620652891,-666.53,0.00013808,2]
[361574516,1747620652900,-400.0,0.00013808,2]
[361574517,1747620652910,-400.0,0.00013808,2]
[361574518,1747620652919,-536.01,0.00013808,2]
[361574519,1747620652928,-503.03,0.00013808,2]
[361574520,1747620652938,-405.66991185,0.00013808,2]
[361574521,1747620652947,-400.0,0.00013808,2]
[361574522,1747620652957,-400.0,0.00013808,2]
[361574523,1747620652966,-750.08,0.00013808,2]
[361574524,1747620652975,-151.0,0.00013808,2]
[361574525,1747620652984,-151.0,0.00013808,2]
[361574526,1747620652993,-151.357546,0.00013808,2]
[361574527,1747620653003,-400.0,0.00013808,2]
[361574528,1747620653012,-401.44021596,0.00013808,2]
[361574529,1747620653021,-400.0,0.00013808,2]
[361574530,1747620653030,-650.95,0.00013808,2]
[361574531,1747620653040,-1389.08,0.00013808,2]
[361574532,1747620653050,-400.0,0.00013808,2]
[361574533,1747620653060,-909.3,0.00013808,2]
[361574534,1747620653069,-525.59,0.00013808,2]
[361574535,1747620653078,-151.0,0.00013808,2]
[361574536,1747620653088,-400.0,0.00013808,2]
[361574537,1747620653097,-151.0,0.00013808,2]
[361574538,1747620653106,-408.15588559,0.00013808,2]
[361574539,1747620653115,-151.0,0.00013808,2]
[361574540,1747620653125,-400.0,0.00013808,2]
[361574541,1747620653135,-151.658053,0.00013808,2]
[361574542,1747620653145,-151.0,0.00013808,2]
[361574543,1747620653155,-151.0,0.00013808,2]
[361574544,1747620653165,-410.13,0.00013808,2]
[361574545,1747620653174,-151.0,0.00013808,2]
[361574546,1747620653183,-151.0,0.00013808,2]
[361574547,1747620653193,-151.9259,0.00013808,2]
[361574548,1747620653203,-438.28,0.00013808,2]
[361574549,1747620653214,-671.58,0.00013808,2]
[361574550,1747620653223,-400.0,0.00013808,2]
[361574551,1747620653233,-406.79056455,0.00013808,2]
[361574552,1747620653243,-722.34,0.00013808,2]
[361574553,1747620653253,-400.0,0.00013808,2]
[361574554,1747620653263,-412.78610341,0.00013808,2]
[361574555,1747620653272,-793.14,0.00013808,2]
[361574556,1747620653282,-503.03,0.00013808,2]
[361574557,1747620653292,-848.31,0.00013808,2]
[361574558,1747620653301,-400.0,0.00013808,2]
[361574559,1747620653311,-152.70788,0.00013808,2]
[361574560,1747620653321,-573.21,0.00013808,2]
[361574561,1747620653330,-400.0,0.00013808,2]
[361574562,1747620653340,-400.0,0.00013808,2]
[361574563,1747620653349,-266.791102,0.00013808,2]
[361574564,1747620653673,-400.0,0.00013808,2]
[361574565,1747620653684,-1153.47,0.00013808,2]
[361574566,1747620653694,-400.0,0.00013808,2]
[361574567,1747620653704,-404.50401808,0.00013808,2]
[361574568,1747620653713,-400.0,0.00013808,2]
[361574569,1747620653724,-536.76,0.00013808,2]
[361574570,1747620653733,-556.21,0.00013808,2]
[361574571,1747620653743,-1384.34,0.00013808,2]
[361574572,1747620653752,-400.0,0.00013808,2]
[361574573,1747620653762,-1413.75,0.00013808,2]
[361574574,1747620653771,-469.35448125,0.00013808,2]
[361574575,1747620653782,-543.62,0.00013808,2]
[361574576,1747620653791,-400.0,0.00013808,2]
[361574577,1747620653800,-717.48,0.00013808,2]
[361574578,1747620653810,-649.3,0.00013808,2]
[361574579,1747620653820,-1079.28,0.00013808,2]
[361574580,1747620653829,-570.62,0.00013808,2]
[361574581,1747620653838,-452.97,0.00013808,2]
[361574582,1747620653848,-154.815234,0.00013808,2]
[361574583,1747620653857,-400.0,0.00013808,2]
[361574584,1747620653867,-1078.98,0.00013808,2]
[361574585,1747620653876,-400.0,0.00013808,2]
[361574586,1747620653885,-565.75,0.00013808,2]
[361574587,1747620653895,-1162.76,0.00013808,2]
[361574588,1747620653904,-408.24994068,0.00013808,2]
[361574589,1747620653914,-400.0,0.00013808,2]
[361574590,1747620653923,-417.70305127,0.00013808,2]
[361574591,1747620653932,-151.0,0.00013808,2]
[361574592,1747620653941,-312.48,0.00013808,2]
[361574593,1747620653951,-400.0,0.00013808,2]
[361574594,1747620653960,-151.0,0.00013808,2]
[361574595,1747620653970,-400.0,0.00013808,2]
[361574596,1747620653980,-152.916906,0.00013808,2]
[361574597,1747620653990,-518.79,0.00013808,2]
[361574598,1747620653999,-400.0,0.00013808,2]
[361574599,1747620654009,-377.28314448,0.00013808,2]
[361574600,1747620654019,-400.0,0.00013808,2]
[361574601,1747620654028,-470.07854609,0.00013808,2]
[361574602,1747620654037,-153.051214,0.00013808,2]
[361574603,1747620654047,-400.0,0.00013808,2]
[361574604,1747620654056,-151.0,0.00013808,2]
[361574605,1747620654066,-151.0,0.00013808,2]
[361574606,1747620654075,-151.0,0.00013808,2]
[361574607,1747620654084,-662.1,0.00013808,2]
[361574608,1747620654093,-400.0,0.00013808,2]
[361574609,1747620654102,-401.84403476,0.00013808,2]
[361574610,1747620654111,-151.0,0.00013808,2]
[361574611,1747620654121,-156.5767621,0.00013808,2]
[361574612,1747620654130,-416.02,0.00013808,2]
[361574613,1747620654139,-400.0,0.00013808,2]
[361574614,1747620654149,-507.97,0.00013808,2]
[361574615,1747620654158,-799.51,0.00013808,2]
[361574616,1747620654167,-152.873619,0.00013808,2]
[361574617,1747620654177,-400.0,0.00013808,2]
[361574618,1747620654186,-400.0,0.00013808,2]
[361574619,1747620654195,-400.0,0.00013808,2]
[361574620,1747620654207,-1010.08,0.00013808,2]
[361574621,1747620654217,-400.0,0.00013808,2]
[361574622,1747620654226,-658.57,0.00013808,2]
[361574623,1747620654235,-285.33315817,0.00013808,2]
[361574624,1747620654245,-528.59,0.00013808,2]
[361574625,1747620654254,-151.0,0.00013808,2]
[361574626,1747620654263,-400.0,0.00013808,2]
[361574627,1747620654273,-400.0,0.00013808,2]
[361574628,1747620654283,-157.451976,0.00013808,2]
[361574629,1747620654293,-507.56,0.00013808,2]
[361574630,1747620654303,-400.0,0.00013808,2]
[361574631,1747620654312,-151.0,0.00013808,2]
[361574632,1747620654322,-400.0,0.00013808,2]
[361574633,1747620654331,-151.0,0.00013808,2]
[361574634,1747620654341,-1276.41,0.00013808,2]
[361574635,1747620654350,-245.327588,0.00013808,2]
[361574636,1747620654359,-400.0,0.00013808,2]
[361574637,1747620654368,-400.0,0.00013808,2]
[361574638,1747620654377,-400.0,0.00013808,2]
[361574639,1747620654387,-529.83,0.00013808,2]
[361574640,1747620654396,-400.0,0.00013808,2]
[361574641,1747620654404,-400.0,0.00013808,2]
[361574642,1747620654414,-400.0,0.00013808,2]
[361574643,1747620654423,-405.15820895,0.00013808,2]
[361574644,1747620654432,-400.0,0.00013808,2]
[361574645,1747620654441,-400.0,0.00013808,2]
[361574646,1747620654450,-855.9,0.00013808,2]
[361574647,1747620654460,-373.584908,0.00013808,2]
[361574648,1747620654469,-373.584908,0.00013808,2]
[361574649,1747620654479,-400.0,0.00013808,2]
[361574650,1747620654488,-373.584908,0.00013808,2]
[361574651,1747620654498,-400.0,0.00013808,2]
[361574652,1747620654507,-225.83805771,0.00013808,2]
[361574653,1747620654517,-151.0,0.00013808,2]
[361574654,1747620654526,-413.79,0.00013808,2]
[361574655,1747620654535,-151.0,0.00013808,2]
[361574656,1747620654545,-151.0,0.00013808,2]
[361574657,1747620654554,-401.16668627,0.00013808,2]
[361574658,1747620654563,-710.58,0.00013808,2]
[361574659,1747620654572,-441.26,0.00013808,2]
[361574660,1747620654582,-373.584908,0.00013808,2]
[361574661,1747620654591,-373.584908,0.00013808,2]
[361574662,1747620654600,-373.584908,0.00013808,2]
[361574663,1747620654609,-400.0,0.00013808,2]
[361574664,1747620654618,-400.0,0.00013808,2]
[361574665,1747620654628,-151.0,0.00013808,2]
[361574666,1747620654637,-408.06771816,0.00013808,2]
[361574667,1747620654647,-802.95,0.00013808,2]
[361574668,1747620654657,-152.398356,0.00013808,2]
[361574669,1747620654667,-400.0,0.00013808,2]
[361574670,1747620654676,-400.0,0.00013808,2]
[361574671,1747620654686,-400.0,0.00013808,2]
[361574672,1747620654695,-400.0,0.00013808,2]
[361574673,1747620654705,-400.0,0.00013808,2]
[361574674,1747620654715,-400.0,0.00013808,2]
[361574675,1747620654724,-405.67554366,0.00013808,2]
[361574676,1747620654733,-400.0,0.00013808,2]
[361574677,1747620654742,-400.0,0.00013808,2]
[361574678,1747620654752,-1351.59,0.00013808,2]
[361574679,1747620654761,-400.0,0.00013808,2]
[361574680,1747620654771,-608.52,0.00013808,2]
[361574681,1747620654781,-159.75034669,0.00013808,2]
[361574682,1747620654790,-544.06,0.00013808,2]
[361574683,1747620654799,-459.29,0.00013808,2]
[361574684,1747620654809,-509.82,0.00013808,2]
[361574685,1747620654818,-400.0,0.00013808,2]
[361574686,1747620654827,-402.32087186,0.00013808,2]
[361574687,1747620654837,-400.0,0.00013808,2]
[361574688,1747620654846,-895.83,0.00013808,2]
[361574689,1747620654855,-400.0,0.00013808,2]
[361574690,1747620654865,-151.0,0.00013808,2]
[361574691,1747620654874,-151.0,0.00013808,2]
[361574692,1747620654884,-151.0,0.00013808,2]
[361574693,1747620654893,-502.93,0.00013808,2]
[361574694,1747620654902,-609.77,0.00013808,2]
[361574695,1747620654911,-400.0,0.00013808,2]
[361574696,1747620654921,-151.0,0.00013808,2]
[361574697,1747620654930,-400.0,0.00013808,2]
[361574698,1747620654939,-296.024992,0.00013808,2]
[361574699,1747620654948,-400.0,0.00013808,2]
[361574700,1747620654958,-400.0,0.00013808,2]
[361574701,1747620654967,-400.0,0.00013808,2]
[361574702,1747620654976,-412.02,0.00013808,2]
[361574703,1747620654985,-895.06,0.00013808,2]
[361574704,1747620654995,-504.05534819,0.00013808,2]
[361574705,1747620655003,-400.0,0.00013808,2]
[361574706,1747620655013,-400.0,0.00013808,2]
[361574707,1747620655022,-459.84,0.00013808,2]
[361574708,1747620655031,-400.0,0.00013808,2]
[361574709,1747620655042,-400.0,0.00013808,2]
[361574710,1747620655052,-400.0,0.00013808,2]
[361574711,1747620655061,-460.26,0.00013808,2]
[361574712,1747620655071,-400.0,0.00013808,2]
[361574713,1747620655080,-226.36520591,0.00013808,2]
[361574714,1747620655090,-400.0,0.00013808,2]
[361574715,1747620655100,-400.0,0.00013808,2]
[361574716,1747620655109,-400.0,0.00013808,2]
[361574717,1747620655119,-603.07,0.00013808,2]
[361574718,1747620655128,-689.83,0.00013808,2]
[361574719,1747620655138,-876.58,0.00013808,2]
[361574720,1747620655147,-400.0,0.00013808,2]
[361574721,1747620655157,-400.0,0.00013808,2]
[361574722,1747620655166,-400.0,0.00013808,2]
[361574723,1747620655175,-1239.62,0.00013808,2]
[361574724,1747620655185,-702.24,0.00013808,2]
[361574725,1747620655194,-400.0,0.00013808,2]
[361574726,1747620655205,-1155.1,0.00013808,2]
[361574727,1747620655215,-625.29,0.00013808,2]
[361574728,1747620655224,-405.73005112,0.00013808,2]
[361574729,1747620655233,-400.0,0.00013808,2]
[361574730,1747620655242,-505.8,0.00013808,2]
[361574731,1747620655253,-400.0,0.00013808,2]
[361574732,1747620655262,-400.0,0.00013808,2]
[361574733,1747620655271,-505.8,0.00013808,2]
[361574734,1747620655283,-400.0,0.00013808,2]
[361574735,1747620655294,-422.09,0.00013808,2]
[361574736,1747620655303,-400.0,0.00013808,2]
[361574737,1747620655312,-384.47550222,0.00013808,2]
[361574738,1747620655322,-151.0,0.00013808,2]
[361574739,1747620655331,-151.0,0.00013808,2]
[361574740,1747620655342,-151.0,0.00013808,2]
[361574741,1747620655354,-400.0,0.00013808,2]
[361574742,1747620655363,-572.76,0.00013808,2]
[361574743,1747620655372,-400.0,0.00013808,2]
[361574744,1747620655382,-478.15,0.00013808,2]
[361574745,1747620655391,-400.0,0.00013808,2]
[361574746,1747620655400,-400.0,0.00013808,2]
[361574747,1747620655409,-734.3,0.00013808,2]
[361574748,1747620655418,-400.0,0.00013808,2]
[361574749,1747620655428,-462.25791582,0.00013808,2]
[361574750,1747620655436,-401.00930284,0.00013808,2]
[361574751,1747620655445,-189.482943,0.00013808,2]
[361574752,1747620655454,-400.0,0.00013808,2]
[361574753,1747620655463,-1232.66,0.00013808,2]
[361574754,1747620655472,-402.77991428,0.00013808,2]
[361574755,1747620655480,-647.3,0.00013808,2]
[361574756,1747620655489,-400.0,0.00013808,2]
[361574757,1747620655499,-186.19798223,0.00013808,2]
[361574758,1747620655509,-400.0,0.00013808,2]
[361574759,1747620655518,-617.52,0.00013808,2]
[361574760,1747620655527,-433.81,0.00013808,2]
[361574761,1747620655536,-151.0,0.00013808,2]
[361574762,1747620655545,-151.0,0.00013808,2]
[361574763,1747620655558,-400.0,0.00013808,2]
[361574764,1747620655568,-151.0,0.00013808,2]
[361574765,1747620655577,-502.8,0.00013808,2]
[361574766,1747620655586,-151.0,0.00013808,2]
[361574767,1747620655596,-151.0,0.00013808,2]
[361574768,1747620655605,-400.0,0.00013808,2]
[361574769,1747620655614,-485.75,0.00013808,2]
[361574770,1747620655624,-151.0,0.00013808,2]
[361574771,1747620655633,-400.0,0.00013808,2]
[361574772,1747620655643,-151.0,0.00013808,2]
[361574773,1747620655652,-151.0,0.00013808,2]
[361574774,1747620655661,-1227.49,0.00013808,2]
[361574775,1747620655671,-151.0,0.00013808,2]
[361574776,1747620655680,-400.0,0.00013808,2]
[361574777,1747620655692,-402.62129474,0.00013808,2]
[361574778,1747620655701,-400.0,0.00013808,2]
[361574779,1747620655711,-531.68,0.00013808,2]
[361574780,1747620655720,-400.0,0.00013808,2]
[361574781,1747620655730,-405.35660533,0.00013808,2]
[361574782,1747620655739,-689.32,0.00013808,2]
[361574783,1747620655749,-400.0,0.00013808,2]
[361574784,1747620655758,-401.20328314,0.00013808,2]
[361574785,1747620655768,-622.3,0.00013808,2]
[361574786,1747620655777,-869.94,0.00013808,2]
[361574787,1747620655786,-400.0,0.00013808,2]
[361574788,1747620655796,-575.33,0.00013808,2]
[361574789,1747620655805,-400.0,0.00013808,2]
[361574790,1747620655815,-924.77,0.00013808,2]
[361574791,1747620655825,-403.14433179,0.00013808,2]
[361574792,1747620655834,-400.72499429,0.00013808,2]
[361574793,1747620655844,-1119.07,0.00013808,2]
[361574794,1747620655853,-400.0,0.00013808,2]
[361574795,1747620655862,-472.51,0.00013808,2]
[361574796,1747620655873,-400.0,0.00013808,2]
[361574797,1747620655883,-400.0,0.00013808,2]
[361574798,1747620655892,-151.0,0.00013808,2]
[361574799,1747620655902,-151.0,0.00013808,2]
[361574800,1747620655910,-151.0,0.00013808,2]
[361574801,1747620655919,-400.0,0.00013808,2]
[361574802,1747620655929,-708.89,0.00013808,2]
[361574803,1747620656012,-400.0,0.00013808,2]
[361574804,1747620656021,-400.0,0.00013808,2]
[361574805,1747620656031,-400.0,0.00013808,2]
[361574806,1747620656040,-400.0,0.00013808,2]
[361574807,1747620656049,-400.0,0.00013808,2]
[361574808,1747620656058,-714.72,0.00013808,2]
[361574809,1747620656067,-400.0,0.00013808,2]
[361574810,1747620656077,-408.3392386,0.00013808,2]
[361574811,1747620656087,-400.0,0.00013808,2]
[361574812,1747620656097,-400.0,0.00013808,2]
[361574813,1747620656106,-400.0,0.00013808,2]
[361574814,1747620656116,-400.0,0.00013808,2]
[361574815,1747620656124,-400.0,0.00013808,2]
[361574816,1747620656133,-400.0,0.00013808,2]
[361574817,1747620656142,-400.0,0.00013808,2]
[361574818,1747620656151,-400.0,0.00013808,2]
[361574819,1747620656160,-400.0,0.00013808,2]
[361574820,1747620656169,-400.0,0.00013808,2]
[361574821,1747620656179,-888.49,0.00013808,2]
[361574822,1747620656188,-400.0,0.00013808,2]
[361574823,1747620656197,-400.0,0.00013808,2]
[361574824,1747620656215,-401.31842997,0.00013808,2]
[361574825,1747620656224,-416.74875989,0.00013808,2]
[361574826,1747620656233,-400.0,0.00013808,2]
[361574827,1747620656242,-400.0,0.00013808,2]
[361574828,1747620656252,-1203.44,0.00013808,2]
[361574829,1747620656261,-645.63,0.00013808,2]
[361574830,1747620656270,-400.0,0.00013808,2]
[361574831,1747620656279,-1241.14,0.00013808,2]
[361574832,1747620656288,-402.71287528,0.00013808,2]
[361574833,1747620656297,-400.0,0.00013808,2]
[361574834,1747620656306,-1037.15,0.00013808,2]
[361574835,1747620656315,-151.0,0.00013808,2]
[361574836,1747620656323,-151.0,0.00013808,2]
[361574837,1747620656332,-162.36199,0.00013808,2]
[361574838,1747620656341,-400.0,0.00013808,2]
[361574839,1747620656351,-779.99,0.00013808,2]
[361574840,1747620656359,-400.0,0.00013808,2]
[361574841,1747620656368,-442.82,0.00013808,2]
[361574842,1747620656377,-400.0,0.00013808,2]
[361574843,1747620656386,-400.0,0.00013808,2]
[361574844,1747620656394,-400.0,0.00013808,2]
[361574845,1747620656403,-295.74524317,0.00013808,2]
[361574846,1747620656412,-400.0,0.00013808,2]
[361574847,1747620656421,-523.5,0.00013808,2]
[361574848,1747620656430,-416.28,0.00013808,2]
[361574849,1747620656439,-722.8,0.00013808,2]
[361574850,1747620656448,-400.0,0.00013808,2]
[361574851,1747620656456,-400.0,0.00013808,2]
[361574852,1747620656465,-525.79,0.00013808,2]
[361574853,1747620656474,-400.0,0.00013808,2]
[361574854,1747620656483,-400.0,0.00013808,2]
[361574855,1747620656492,-400.0,0.00013808,2]
[361574856,1747620656501,-400.0,0.00013808,2]
[361574857,1747620656510,-832.98,0.00013808,2]
[361574858,1747620656519,-1013.53,0.00013808,2]
[361574859,1747620656528,-670.23,0.00013808,2]
[361574860,1747620656537,-408.21644947,0.00013808,2]
[361574861,1747620656546,-702.83,0.00013808,2]
[361574862,1747620656555,-400.0,0.00013808,2]
[361574863,1747620656564,-335.38447932,0.00013808,2]
[361574864,1747620656573,-408.76780347,0.00013808,2]
[361574865,1747620656582,-400.0,0.00013808,2]
[361574866,1747620656591,-180.09333331,0.00013808,2]
[361574867,1747620656600,-400.0,0.00013808,2]
[361574868,1747620656609,-1257.96,0.00013808,2]
[361574869,1747620656619,-400.0,0.00013808,2]
[361574870,1747620656628,-400.0,0.00013808,2]
[361574871,1747620656637,-400.0,0.00013808,2]
[361574872,1747620656646,-801.8,0.00013808,2]
[361574873,1747620656655,-518.57,0.00013808,2]
[361574874,1747620656665,-400.0,0.00013808,2]
[361574875,1747620656674,-400.0,0.00013808,2]
[361574876,1747620656683,-400.0,0.00013808,2]
[361574877,1747620656692,-432.17,0.00013808,2]
[361574878,1747620656702,-400.0,0.00013808,2]
[361574879,1747620656711,-400.0,0.00013808,2]